[Event "Titled Tuesday Blitz August 16 Early 2022"]
[White "Garrido, Denis"]
[Black "Perez Leiva, Jerzy Jesus"]
[WhiteFideId "601217"]
[BlackFideId "3524337"]
[WhiteElo "2205"]
[BlackElo "2287"]
[Result "0-1"]
[Round "02"]
[TimeControl "180+2"]
[Date "2022.08.18"]
[WhiteClock "0:00:00"]
[BlackClock "0:00:00"]

1. c4 {[%clk 0:00:00]}  Nf6 {[%clk 0:00:00]} 2. Nc3 {[%clk 0:00:00]}  e6 {[%clk 0:00:00]} 3. d4 {[%clk 0:00:00]}  d5 {[%clk 0:00:00]} 4. cxd5 {[%clk 0:00:00]}  exd5 {[%clk 0:00:00]} 5. Bg5 {[%clk 0:00:00]}  c6 {[%clk 0:00:00]} 6. e3 {[%clk 0:00:00]}  Bd6 {[%clk 0:00:00]} 7. Qc2 {[%clk 0:00:00]}  h6 {[%clk 0:00:00]} 8. Bh4 {[%clk 0:00:00]}  O-O {[%clk 0:00:00]} 9. Bd3 {[%clk 0:00:00]}  a5 {[%clk 0:00:00]} 10. Nge2 {[%clk 0:00:00]}  Re8 {[%clk 0:00:00]} 11. Rd1 {[%clk 0:00:00]}  Na6 {[%clk 0:00:00]} 12. a3 {[%clk 0:00:00]}  Nc7 {[%clk 0:00:00]} 13. Bg3 {[%clk 0:00:00]}  Ne6 {[%clk 0:00:00]} 14. O-O {[%clk 0:00:00]}  Ng5 {[%clk 0:00:00]} 15. Bxd6 {[%clk 0:00:00]}  Qxd6 {[%clk 0:00:00]} 16. Ng3 {[%clk 0:00:00]}  h5 {[%clk 0:00:00]} 17. f4 {[%clk 0:00:00]}  Ngh7 {[%clk 0:00:00]} 18. Rde1 {[%clk 0:00:00]}  g6 {[%clk 0:00:00]} 19. f5 {[%clk 0:00:00]}  g5 {[%clk 0:00:00]} 20. Qd1 {[%clk 0:00:00]}  Ng4 {[%clk 0:00:00]} 21. Rf3 {[%clk 0:00:00]}  h4 {[%clk 0:00:00]} 22. h3 {[%clk 0:00:00]}  hxg3 {[%clk 0:00:00]} 23. hxg4 {[%clk 0:00:00]}  Nf6 {[%clk 0:00:00]} 24. e4 {[%clk 0:00:00]}  dxe4 {[%clk 0:00:00]} 25. Bxe4 {[%clk 0:00:00]}  Kg7 {[%clk 0:00:00]} 26. Qd3 {[%clk 0:00:00]}  b6 {[%clk 0:00:00]} 27. Rxg3 {[%clk 0:00:00]}  Ba6 {[%clk 0:00:00]} 28. Qe3 {[%clk 0:00:00]}  Ra7 {[%clk 0:00:00]} 29. Qxg5+ {[%clk 0:00:00]}  Kf8 {[%clk 0:00:00]} 30. Rh3 {[%clk 0:00:00]}  Ng8 {[%clk 0:00:00]} 31. Rh8 {[%clk 0:00:00]}  Qxd4+ {[%clk 0:00:00]} 32. Kh1 {[%clk 0:00:00]}  Qxh8+ {[%clk 0:00:00]} 33. Kg1 {[%clk 0:00:00]}  Qd4+ {[%clk 0:00:00]} 34. Kh1 {[%clk 0:00:00]}  Rae7 {[%clk 0:00:00]} 0-1


[Site "https://www.chess.com"]

[Event "Titled Tuesday Blitz August 16 Early 2022"]
[White "Gheorghiu, Calin"]
[Black "Terry, Renato"]
[WhiteFideId "1200305"]
[BlackFideId "3803457"]
[WhiteElo "2168"]
[BlackElo "2577"]
[Result "0-1"]
[Round "02"]
[TimeControl "180+2"]
[Date "2022.08.18"]
[WhiteClock "0:00:00"]
[BlackClock "0:00:00"]

1. d4 {[%clk 0:00:00]}  e6 {[%clk 0:00:00]} 2. Nc3 {[%clk 0:00:00]}  Nf6 {[%clk 0:00:00]} 3. Bf4 {[%clk 0:00:00]}  Bb4 {[%clk 0:00:00]} 4. a3 {[%clk 0:00:00]}  Bxc3+ {[%clk 0:00:00]} 5. bxc3 {[%clk 0:00:00]}  b6 {[%clk 0:00:00]} 6. f3 {[%clk 0:00:00]}  d5 {[%clk 0:00:00]} 7. g4 {[%clk 0:00:00]}  c5 {[%clk 0:00:00]} 8. e3 {[%clk 0:00:00]}  Ba6 {[%clk 0:00:00]} 9. Bd3 {[%clk 0:00:00]}  Bxd3 {[%clk 0:00:00]} 10. cxd3 {[%clk 0:00:00]}  Nc6 {[%clk 0:00:00]} 11. Ne2 {[%clk 0:00:00]}  Rc8 {[%clk 0:00:00]} 12. O-O {[%clk 0:00:00]}  O-O {[%clk 0:00:00]} 13. dxc5 {[%clk 0:00:00]}  bxc5 {[%clk 0:00:00]} 14. c4 {[%clk 0:00:00]}  Re8 {[%clk 0:00:00]} 15. Bg5 {[%clk 0:00:00]}  Ne5 {[%clk 0:00:00]} 16. Qc2 {[%clk 0:00:00]}  Ng6 {[%clk 0:00:00]} 17. e4 {[%clk 0:00:00]}  h6 {[%clk 0:00:00]} 18. Be3 {[%clk 0:00:00]}  Qd6 {[%clk 0:00:00]} 19. Rab1 {[%clk 0:00:00]}  Red8 {[%clk 0:00:00]} 20. cxd5 {[%clk 0:00:00]}  exd5 {[%clk 0:00:00]} 21. Ng3 {[%clk 0:00:00]}  Qa6 {[%clk 0:00:00]} 22. Nf5 {[%clk 0:00:00]}  c4 {[%clk 0:00:00]} 23. dxc4 {[%clk 0:00:00]}  dxe4 {[%clk 0:00:00]} 24. Rbd1 {[%clk 0:00:00]}  exf3 {[%clk 0:00:00]} 25. Rxd8+ {[%clk 0:00:00]}  Rxd8 {[%clk 0:00:00]} 26. h3 {[%clk 0:00:00]}  Ne5 {[%clk 0:00:00]} 27. Bf4 {[%clk 0:00:00]}  Nd3 {[%clk 0:00:00]} 28. Rxf3 {[%clk 0:00:00]}  Ne1 {[%clk 0:00:00]} 29. Qe2 {[%clk 0:00:00]}  Nxf3+ {[%clk 0:00:00]} 30. Qxf3 {[%clk 0:00:00]}  Qxc4 {[%clk 0:00:00]} 31. Kg2 {[%clk 0:00:00]}  Qe4 {[%clk 0:00:00]} 32. Qxe4 {[%clk 0:00:00]}  Nxe4 {[%clk 0:00:00]} 33. Kf3 {[%clk 0:00:00]}  Nc3 {[%clk 0:00:00]} 34. Ne7+ {[%clk 0:00:00]}  Kf8 {[%clk 0:00:00]} 35. Nc6 {[%clk 0:00:00]}  Rd3+ {[%clk 0:00:00]} 36. Kg2 {[%clk 0:00:00]}  Nd5 {[%clk 0:00:00]} 37. Bd6+ {[%clk 0:00:00]}  Ke8 {[%clk 0:00:00]} 38. Nxa7 {[%clk 0:00:00]}  Ne3+ {[%clk 0:00:00]} 39. Kf3 {[%clk 0:00:00]}  Nc4+ {[%clk 0:00:00]} 40. Ke2 {[%clk 0:00:00]}  Rxd6 {[%clk 0:00:00]} 0-1


[Site "https://www.chess.com"]

[Event "Titled Tuesday Blitz August 16 Early 2022"]
[White "Ginzburg, Yakov"]
[Black "Alexikov, Alexander"]
[WhiteFideId "4157176"]
[BlackFideId "14103958"]
[WhiteElo "2265"]
[BlackElo "2253"]
[Result "1-0"]
[Round "02"]
[TimeControl "180+2"]
[Date "2022.08.18"]
[WhiteClock "0:00:00"]
[BlackClock "0:00:00"]

1. e4 {[%clk 0:00:00]}  c5 {[%clk 0:00:00]} 2. Nf3 {[%clk 0:00:00]}  d6 {[%clk 0:00:00]} 3. c3 {[%clk 0:00:00]}  Nf6 {[%clk 0:00:00]} 4. Be2 {[%clk 0:00:00]}  g6 {[%clk 0:00:00]} 5. O-O {[%clk 0:00:00]}  Bg7 {[%clk 0:00:00]} 6. Re1 {[%clk 0:00:00]}  O-O {[%clk 0:00:00]} 7. Bf1 {[%clk 0:00:00]}  e5 {[%clk 0:00:00]} 8. d4 {[%clk 0:00:00]}  Nc6 {[%clk 0:00:00]} 9. h3 {[%clk 0:00:00]}  Re8 {[%clk 0:00:00]} 10. Bc4 {[%clk 0:00:00]}  h6 {[%clk 0:00:00]} 11. dxe5 {[%clk 0:00:00]}  dxe5 {[%clk 0:00:00]} 12. Nbd2 {[%clk 0:00:00]}  Qc7 {[%clk 0:00:00]} 13. Qe2 {[%clk 0:00:00]}  a6 {[%clk 0:00:00]} 14. a4 {[%clk 0:00:00]}  Nd8 {[%clk 0:00:00]} 15. b4 {[%clk 0:00:00]}  Ne6 {[%clk 0:00:00]} 16. Nb3 {[%clk 0:00:00]}  Nf4 {[%clk 0:00:00]} 17. Bxf4 {[%clk 0:00:00]}  exf4 {[%clk 0:00:00]} 18. Nxc5 {[%clk 0:00:00]}  b6 {[%clk 0:00:00]} 19. Nxa6 {[%clk 0:00:00]}  Qb7 {[%clk 0:00:00]} 20. e5 {[%clk 0:00:00]}  Nd7 {[%clk 0:00:00]} 21. b5 {[%clk 0:00:00]}  Nxe5 {[%clk 0:00:00]} 22. Nxe5 {[%clk 0:00:00]}  Rxe5 {[%clk 0:00:00]} 23. Qa2 {[%clk 0:00:00]}  Bf5 {[%clk 0:00:00]} 24. Nb4 {[%clk 0:00:00]}  Rxe1+ {[%clk 0:00:00]} 25. Rxe1 {[%clk 0:00:00]}  Bxc3 {[%clk 0:00:00]} 26. Bd5 {[%clk 0:00:00]}  Qc8 {[%clk 0:00:00]} 27. Bxf7+ {[%clk 0:00:00]}  Kg7 {[%clk 0:00:00]} 28. Re7 {[%clk 0:00:00]} 1-0


[Site "https://www.chess.com"]

[Event "Titled Tuesday Blitz August 16 Early 2022"]
[White "Girinath, P.D.S."]
[Black "Broca Jimenez, Fernando"]
[WhiteFideId "5000572"]
[BlackFideId "5104742"]
[WhiteElo "2369"]
[BlackElo "2062"]
[Result "1-0"]
[Round "02"]
[TimeControl "180+2"]
[Date "2022.08.18"]
[WhiteClock "0:00:00"]
[BlackClock "0:00:00"]

1. e4 {[%clk 0:00:00]}  c5 {[%clk 0:00:00]} 2. Nf3 {[%clk 0:00:00]}  g6 {[%clk 0:00:00]} 3. c3 {[%clk 0:00:00]}  Bg7 {[%clk 0:00:00]} 4. d4 {[%clk 0:00:00]}  cxd4 {[%clk 0:00:00]} 5. cxd4 {[%clk 0:00:00]}  d5 {[%clk 0:00:00]} 6. exd5 {[%clk 0:00:00]}  Bg4 {[%clk 0:00:00]} 7. Nc3 {[%clk 0:00:00]}  a6 {[%clk 0:00:00]} 8. Be2 {[%clk 0:00:00]}  Nf6 {[%clk 0:00:00]} 9. Qb3 {[%clk 0:00:00]}  O-O {[%clk 0:00:00]} 10. h3 {[%clk 0:00:00]}  Bxf3 {[%clk 0:00:00]} 11. Bxf3 {[%clk 0:00:00]}  b5 {[%clk 0:00:00]} 12. a4 {[%clk 0:00:00]}  Nbd7 {[%clk 0:00:00]} 13. axb5 {[%clk 0:00:00]}  axb5 {[%clk 0:00:00]} 14. Rxa8 {[%clk 0:00:00]}  Qxa8 {[%clk 0:00:00]} 15. Qxb5 {[%clk 0:00:00]}  Rb8 {[%clk 0:00:00]} 16. Qe2 {[%clk 0:00:00]}  Nb6 {[%clk 0:00:00]} 17. d6 {[%clk 0:00:00]}  Qa7 {[%clk 0:00:00]} 18. dxe7 {[%clk 0:00:00]}  Re8 {[%clk 0:00:00]} 19. O-O {[%clk 0:00:00]}  Rxe7 {[%clk 0:00:00]} 20. Qb5 {[%clk 0:00:00]}  h6 {[%clk 0:00:00]} 21. d5 {[%clk 0:00:00]}  Nbd7 {[%clk 0:00:00]} 22. d6 {[%clk 0:00:00]}  Re5 {[%clk 0:00:00]} 23. Qc6 {[%clk 0:00:00]}  Bf8 {[%clk 0:00:00]} 24. Be3 {[%clk 0:00:00]}  Qb8 {[%clk 0:00:00]} 25. Rd1 {[%clk 0:00:00]}  Re6 {[%clk 0:00:00]} 26. Nb5 {[%clk 0:00:00]}  Ne5 {[%clk 0:00:00]} 27. Qb6 {[%clk 0:00:00]}  Nxf3+ {[%clk 0:00:00]} 28. gxf3 {[%clk 0:00:00]}  Qxb6 {[%clk 0:00:00]} 29. Bxb6 {[%clk 0:00:00]}  Nd7 {[%clk 0:00:00]} 30. Bc7 {[%clk 0:00:00]}  f5 {[%clk 0:00:00]} 31. b4 {[%clk 0:00:00]}  Kf7 {[%clk 0:00:00]} 32. Nd4 {[%clk 0:00:00]}  Re8 {[%clk 0:00:00]} 33. b5 {[%clk 0:00:00]}  Bg7 {[%clk 0:00:00]} 34. b6 {[%clk 0:00:00]}  Bxd4 {[%clk 0:00:00]} 35. Rxd4 {[%clk 0:00:00]}  Ke6 {[%clk 0:00:00]} 36. Kg2 {[%clk 0:00:00]}  Rc8 {[%clk 0:00:00]} 37. b7 {[%clk 0:00:00]}  Re8 {[%clk 0:00:00]} 38. Ra4 {[%clk 0:00:00]}  Nb8 {[%clk 0:00:00]} 39. Ra8 {[%clk 0:00:00]}  Kd7 {[%clk 0:00:00]} 40. Rxb8 {[%clk 0:00:00]}  Re1 {[%clk 0:00:00]} 41. Rd8+ {[%clk 0:00:00]}  Ke6 {[%clk 0:00:00]} 42. b8=Q {[%clk 0:00:00]}  Rc1 {[%clk 0:00:00]} 43. Re8+ {[%clk 0:00:00]}  Kf6 {[%clk 0:00:00]} 44. Qd8+ {[%clk 0:00:00]}  Kf7 {[%clk 0:00:00]} 45. Qe7# {[%clk 0:00:00]} 1-0


[Site "https://www.chess.com"]

[Event "Titled Tuesday Blitz August 16 Early 2022"]
[White "Goltsev, Dmitry"]
[Black "Daianu, Cristian-Clement"]
[WhiteFideId "24176710"]
[BlackFideId "1208926"]
[WhiteElo "2258"]
[BlackElo "2127"]
[Result "0-1"]
[Round "02"]
[TimeControl "180+2"]
[Date "2022.08.18"]
[WhiteClock "0:00:00"]
[BlackClock "0:00:00"]

1. e4 {[%clk 0:00:00]}  c5 {[%clk 0:00:00]} 2. Nf3 {[%clk 0:00:00]}  d6 {[%clk 0:00:00]} 3. d4 {[%clk 0:00:00]}  cxd4 {[%clk 0:00:00]} 4. Nxd4 {[%clk 0:00:00]}  Nf6 {[%clk 0:00:00]} 5. Nc3 {[%clk 0:00:00]}  a6 {[%clk 0:00:00]} 6. Be2 {[%clk 0:00:00]}  e6 {[%clk 0:00:00]} 7. Be3 {[%clk 0:00:00]}  Qc7 {[%clk 0:00:00]} 8. O-O {[%clk 0:00:00]}  b5 {[%clk 0:00:00]} 9. a3 {[%clk 0:00:00]}  Bb7 {[%clk 0:00:00]} 10. f3 {[%clk 0:00:00]}  Nbd7 {[%clk 0:00:00]} 11. Qd2 {[%clk 0:00:00]}  Be7 {[%clk 0:00:00]} 12. Rad1 {[%clk 0:00:00]}  O-O {[%clk 0:00:00]} 13. g4 {[%clk 0:00:00]}  h6 {[%clk 0:00:00]} 14. h4 {[%clk 0:00:00]}  d5 {[%clk 0:00:00]} 15. g5 {[%clk 0:00:00]}  Qg3+ {[%clk 0:00:00]} 16. Kh1 {[%clk 0:00:00]}  Qxh4+ {[%clk 0:00:00]} 17. Kg2 {[%clk 0:00:00]}  Nh5 {[%clk 0:00:00]} 18. Rh1 {[%clk 0:00:00]}  Qg3+ {[%clk 0:00:00]} 19. Kf1 {[%clk 0:00:00]}  dxe4 {[%clk 0:00:00]} 20. Rxh5 {[%clk 0:00:00]}  exf3 {[%clk 0:00:00]} 21. Bd3 {[%clk 0:00:00]}  Ne5 {[%clk 0:00:00]} 22. gxh6 {[%clk 0:00:00]}  g6 {[%clk 0:00:00]} 23. h7+ {[%clk 0:00:00]}  Kh8 {[%clk 0:00:00]} 24. Bf4 {[%clk 0:00:00]}  Qg2+ {[%clk 0:00:00]} 25. Qxg2 {[%clk 0:00:00]}  fxg2+ {[%clk 0:00:00]} 26. Kg1 {[%clk 0:00:00]}  Nxd3 {[%clk 0:00:00]} 27. Rxd3 {[%clk 0:00:00]}  gxh5 {[%clk 0:00:00]} 28. Be5+ {[%clk 0:00:00]}  Kxh7 {[%clk 0:00:00]} 29. Rh3 {[%clk 0:00:00]}  h4 {[%clk 0:00:00]} 30. Nce2 {[%clk 0:00:00]}  Rg8 {[%clk 0:00:00]} 31. c3 {[%clk 0:00:00]}  Rg4 {[%clk 0:00:00]} 32. Nc1 {[%clk 0:00:00]}  Rd8 {[%clk 0:00:00]} 33. Nd3 {[%clk 0:00:00]}  f6 {[%clk 0:00:00]} 34. Bc7 {[%clk 0:00:00]}  Rd7 {[%clk 0:00:00]} 35. Bb8 {[%clk 0:00:00]}  e5 {[%clk 0:00:00]} 36. Bxe5 {[%clk 0:00:00]}  fxe5 {[%clk 0:00:00]} 37. Nxe5 {[%clk 0:00:00]}  Rdxd4 {[%clk 0:00:00]} 38. cxd4 {[%clk 0:00:00]}  Rxd4 {[%clk 0:00:00]} 39. Nd3 {[%clk 0:00:00]}  Rxd3 {[%clk 0:00:00]} 40. Rxd3 {[%clk 0:00:00]}  Bc5+ {[%clk 0:00:00]} 41. Kh2 {[%clk 0:00:00]}  g1=Q+ {[%clk 0:00:00]} 42. Kh3 {[%clk 0:00:00]}  Bc8+ {[%clk 0:00:00]} 43. Kxh4 {[%clk 0:00:00]}  Qg4# {[%clk 0:00:00]} 0-1


[Site "https://www.chess.com"]

[Event "Titled Tuesday Blitz August 16 Early 2022"]
[White "Gomez Ledo, Roberto Carlos"]
[Black "Rosenberg, Evan S"]
[WhiteFideId "3507076"]
[BlackFideId "2019299"]
[WhiteElo "2379"]
[BlackElo "1999"]
[Result "0-1"]
[Round "02"]
[TimeControl "180+2"]
[Date "2022.08.18"]
[WhiteClock "0:00:00"]
[BlackClock "0:00:00"]

1. d4 {[%clk 0:00:00]}  Nf6 {[%clk 0:00:00]} 2. Bf4 {[%clk 0:00:00]}  b6 {[%clk 0:00:00]} 3. e3 {[%clk 0:00:00]}  Bb7 {[%clk 0:00:00]} 4. a4 {[%clk 0:00:00]}  a6 {[%clk 0:00:00]} 5. Nf3 {[%clk 0:00:00]}  Nh5 {[%clk 0:00:00]} 6. Bg5 {[%clk 0:00:00]}  h6 {[%clk 0:00:00]} 7. Bh4 {[%clk 0:00:00]}  g5 {[%clk 0:00:00]} 8. Nfd2 {[%clk 0:00:00]}  Nf4 {[%clk 0:00:00]} 9. exf4 {[%clk 0:00:00]}  gxh4 {[%clk 0:00:00]} 10. Qh5 {[%clk 0:00:00]}  e6 {[%clk 0:00:00]} 11. Nf3 {[%clk 0:00:00]}  Qf6 {[%clk 0:00:00]} 12. Qxh4 {[%clk 0:00:00]}  Be7 {[%clk 0:00:00]} 13. Qxf6 {[%clk 0:00:00]}  Bxf6 {[%clk 0:00:00]} 14. Nbd2 {[%clk 0:00:00]}  Rg8 {[%clk 0:00:00]} 15. c3 {[%clk 0:00:00]}  c5 {[%clk 0:00:00]} 16. dxc5 {[%clk 0:00:00]}  bxc5 {[%clk 0:00:00]} 17. g3 {[%clk 0:00:00]}  d6 {[%clk 0:00:00]} 18. Bg2 {[%clk 0:00:00]}  Nd7 {[%clk 0:00:00]} 19. O-O {[%clk 0:00:00]}  Rb8 {[%clk 0:00:00]} 20. Nc4 {[%clk 0:00:00]}  Ke7 {[%clk 0:00:00]} 21. Rfd1 {[%clk 0:00:00]}  Bd5 {[%clk 0:00:00]} 22. Nfd2 {[%clk 0:00:00]}  Bxg2 {[%clk 0:00:00]} 23. Kxg2 {[%clk 0:00:00]}  d5 {[%clk 0:00:00]} 24. Na5 {[%clk 0:00:00]}  Rxb2 {[%clk 0:00:00]} 25. Rac1 {[%clk 0:00:00]}  Rc8 {[%clk 0:00:00]} 26. c4 {[%clk 0:00:00]}  Nb6 {[%clk 0:00:00]} 27. Rb1 {[%clk 0:00:00]}  Nxa4 {[%clk 0:00:00]} 28. Nf3 {[%clk 0:00:00]}  Bc3 {[%clk 0:00:00]} 29. Nb3 {[%clk 0:00:00]}  Rb8 {[%clk 0:00:00]} 30. Rxb2 {[%clk 0:00:00]}  Nxb2 {[%clk 0:00:00]} 0-1


[Site "https://www.chess.com"]

[Event "Titled Tuesday Blitz August 16 Early 2022"]
[White "Gonzalez Vega, Alejandro"]
[Black "Turzo, Attila"]
[WhiteFideId "3510042"]
[BlackFideId "704954"]
[WhiteElo "2092"]
[BlackElo "2298"]
[Result "0-1"]
[Round "02"]
[TimeControl "180+2"]
[Date "2022.08.18"]
[WhiteClock "0:00:00"]
[BlackClock "0:00:00"]

1. e4 {[%clk 0:00:00]}  e5 {[%clk 0:00:00]} 2. Nf3 {[%clk 0:00:00]}  Nc6 {[%clk 0:00:00]} 3. d4 {[%clk 0:00:00]}  exd4 {[%clk 0:00:00]} 4. Bc4 {[%clk 0:00:00]}  Nf6 {[%clk 0:00:00]} 5. e5 {[%clk 0:00:00]}  Ne4 {[%clk 0:00:00]} 6. O-O {[%clk 0:00:00]}  d5 {[%clk 0:00:00]} 7. exd6 {[%clk 0:00:00]}  Nxd6 {[%clk 0:00:00]} 8. Bd3 {[%clk 0:00:00]}  Be7 {[%clk 0:00:00]} 9. Bf4 {[%clk 0:00:00]}  O-O {[%clk 0:00:00]} 10. Nbd2 {[%clk 0:00:00]}  Bg4 {[%clk 0:00:00]} 11. h3 {[%clk 0:00:00]}  Bh5 {[%clk 0:00:00]} 12. Nb3 {[%clk 0:00:00]}  Bf6 {[%clk 0:00:00]} 13. g4 {[%clk 0:00:00]}  Bg6 {[%clk 0:00:00]} 14. Bxg6 {[%clk 0:00:00]}  hxg6 {[%clk 0:00:00]} 15. Nbxd4 {[%clk 0:00:00]}  Nxd4 {[%clk 0:00:00]} 16. Nxd4 {[%clk 0:00:00]}  Nc4 {[%clk 0:00:00]} 17. c3 {[%clk 0:00:00]}  Nxb2 {[%clk 0:00:00]} 18. Rb1 {[%clk 0:00:00]}  Nxd1 {[%clk 0:00:00]} 0-1


[Site "https://www.chess.com"]

[Event "Titled Tuesday Blitz August 16 Early 2022"]
[White "Gubanov, Oleg"]
[Black "Olivares Olivares, Claudio"]
[WhiteFideId "14115115"]
[BlackFideId "3400786"]
[WhiteElo "2080"]
[BlackElo "2249"]
[Result "1-0"]
[Round "02"]
[TimeControl "180+2"]
[Date "2022.08.18"]
[WhiteClock "0:00:00"]
[BlackClock "0:00:00"]

1. d4 {[%clk 0:00:00]}  Nf6 {[%clk 0:00:00]} 2. Nc3 {[%clk 0:00:00]}  c5 {[%clk 0:00:00]} 3. d5 {[%clk 0:00:00]}  e6 {[%clk 0:00:00]} 4. e4 {[%clk 0:00:00]}  exd5 {[%clk 0:00:00]} 5. exd5 {[%clk 0:00:00]}  d6 {[%clk 0:00:00]} 6. Be2 {[%clk 0:00:00]}  a6 {[%clk 0:00:00]} 7. a4 {[%clk 0:00:00]}  g6 {[%clk 0:00:00]} 8. Nf3 {[%clk 0:00:00]}  Bg7 {[%clk 0:00:00]} 9. h3 {[%clk 0:00:00]}  O-O {[%clk 0:00:00]} 10. O-O {[%clk 0:00:00]}  b6 {[%clk 0:00:00]} 11. Nd2 {[%clk 0:00:00]}  Bb7 {[%clk 0:00:00]} 12. Nc4 {[%clk 0:00:00]}  Ne8 {[%clk 0:00:00]} 13. Bf4 {[%clk 0:00:00]}  Qc7 {[%clk 0:00:00]} 14. Qd3 {[%clk 0:00:00]}  Nd7 {[%clk 0:00:00]} 15. Qg3 {[%clk 0:00:00]}  Ne5 {[%clk 0:00:00]} 16. Rfe1 {[%clk 0:00:00]}  f6 {[%clk 0:00:00]} 17. h4 {[%clk 0:00:00]}  Rd8 {[%clk 0:00:00]} 18. Rad1 {[%clk 0:00:00]}  Bc8 {[%clk 0:00:00]} 19. h5 {[%clk 0:00:00]}  Bf5 {[%clk 0:00:00]} 20. Ne3 {[%clk 0:00:00]}  Qc8 {[%clk 0:00:00]} 21. Bxe5 {[%clk 0:00:00]}  fxe5 {[%clk 0:00:00]} 22. Nxf5 {[%clk 0:00:00]}  Qxf5 {[%clk 0:00:00]} 23. Bg4 {[%clk 0:00:00]}  Qxc2 {[%clk 0:00:00]} 24. Re2 {[%clk 0:00:00]}  Qb3 {[%clk 0:00:00]} 25. Be6+ {[%clk 0:00:00]}  Kh8 {[%clk 0:00:00]} 26. hxg6 {[%clk 0:00:00]}  Rf4 {[%clk 0:00:00]} 27. gxh7 {[%clk 0:00:00]}  Nf6 {[%clk 0:00:00]} 28. Qg5 {[%clk 0:00:00]}  Rf8 {[%clk 0:00:00]} 29. Rd3 {[%clk 0:00:00]}  Nxh7 {[%clk 0:00:00]} 30. Rh3 {[%clk 0:00:00]}  R4f6 {[%clk 0:00:00]} 31. Bf5 {[%clk 0:00:00]}  Rxf5 {[%clk 0:00:00]} 32. Qg6 {[%clk 0:00:00]}  Bh6 {[%clk 0:00:00]} 33. Rxh6 {[%clk 0:00:00]}  R5f7 {[%clk 0:00:00]} 34. Qxd6 {[%clk 0:00:00]}  b5 {[%clk 0:00:00]} 35. Rxe5 {[%clk 0:00:00]}  Qxb2 {[%clk 0:00:00]} 36. Reh5 {[%clk 0:00:00]}  Qxc3 {[%clk 0:00:00]} 37. Rxh7+ {[%clk 0:00:00]}  Rxh7 {[%clk 0:00:00]} 38. Qxf8# {[%clk 0:00:00]} 1-0


[Site "https://www.chess.com"]

[Event "Titled Tuesday Blitz August 16 Early 2022"]
[White "Jiganchine, Roman"]
[Black "Golubev, Mikhail"]
[WhiteFideId "2603667"]
[BlackFideId "14100983"]
[WhiteElo "2205"]
[BlackElo "2374"]
[Result "0-1"]
[Round "02"]
[TimeControl "180+2"]
[Date "2022.08.18"]
[WhiteClock "0:00:00"]
[BlackClock "0:00:00"]

1. Nf3 {[%clk 0:00:00]}  d6 {[%clk 0:00:00]} 2. c4 {[%clk 0:00:00]}  g6 {[%clk 0:00:00]} 3. Nc3 {[%clk 0:00:00]}  Bg7 {[%clk 0:00:00]} 4. e4 {[%clk 0:00:00]}  Nf6 {[%clk 0:00:00]} 5. d4 {[%clk 0:00:00]}  O-O {[%clk 0:00:00]} 6. Be2 {[%clk 0:00:00]}  e5 {[%clk 0:00:00]} 7. O-O {[%clk 0:00:00]}  Nc6 {[%clk 0:00:00]} 8. d5 {[%clk 0:00:00]}  Ne7 {[%clk 0:00:00]} 9. b4 {[%clk 0:00:00]}  Ne8 {[%clk 0:00:00]} 10. c5 {[%clk 0:00:00]}  f5 {[%clk 0:00:00]} 11. Ng5 {[%clk 0:00:00]}  h6 {[%clk 0:00:00]} 12. Ne6 {[%clk 0:00:00]}  Bxe6 {[%clk 0:00:00]} 13. dxe6 {[%clk 0:00:00]}  fxe4 {[%clk 0:00:00]} 14. Bc4 {[%clk 0:00:00]}  Kh7 {[%clk 0:00:00]} 15. Be3 {[%clk 0:00:00]}  c6 {[%clk 0:00:00]} 16. cxd6 {[%clk 0:00:00]}  Nxd6 {[%clk 0:00:00]} 17. Bb3 {[%clk 0:00:00]}  Nef5 {[%clk 0:00:00]} 18. b5 {[%clk 0:00:00]}  Nd4 {[%clk 0:00:00]} 19. bxc6 {[%clk 0:00:00]}  bxc6 {[%clk 0:00:00]} 20. Qg4 {[%clk 0:00:00]}  h5 {[%clk 0:00:00]} 21. Qh3 {[%clk 0:00:00]}  Qe7 {[%clk 0:00:00]} 22. Rad1 {[%clk 0:00:00]}  Rae8 {[%clk 0:00:00]} 23. Na4 {[%clk 0:00:00]}  N6f5 {[%clk 0:00:00]} 24. Kh1 {[%clk 0:00:00]}  Nxe6 {[%clk 0:00:00]} 25. Bxe6 {[%clk 0:00:00]}  Qxe6 {[%clk 0:00:00]} 26. Nc5 {[%clk 0:00:00]}  Qxa2 {[%clk 0:00:00]} 27. Nd7 {[%clk 0:00:00]}  Rf7 {[%clk 0:00:00]} 28. Nc5 {[%clk 0:00:00]}  Nxe3 {[%clk 0:00:00]} 29. fxe3 {[%clk 0:00:00]}  Rxf1+ {[%clk 0:00:00]} 30. Rxf1 {[%clk 0:00:00]}  Qc4 {[%clk 0:00:00]} 31. Rg1 {[%clk 0:00:00]}  Qxc5 {[%clk 0:00:00]} 32. Qd7 {[%clk 0:00:00]}  Re7 {[%clk 0:00:00]} 33. Qc8 {[%clk 0:00:00]}  Qxe3 {[%clk 0:00:00]} 34. h3 {[%clk 0:00:00]}  Rf7 {[%clk 0:00:00]} 35. Rd1 {[%clk 0:00:00]}  Qf2 {[%clk 0:00:00]} 36. Rb1 {[%clk 0:00:00]}  e3 {[%clk 0:00:00]} 0-1


[Site "https://www.chess.com"]